bitfinex/quotes_BTCUSD_20251031
["timestamp","ask_amount","ask_price","bid_price","bid_amount"]
[1761906681281,3.54740783,110040.0,110030.0,0.004]
[1761906681500,3.56749512,110040.0,110030.0,0.004]
[1761906681738,3.47767611,110040.0,110030.0,0.004]
[1761906681966,3.87111032,110040.0,110030.0,0.004]
[1761906682607,2.5034203,110030.0,110020.0,0.0290429]
[1761906682812,3.44405678,110030.0,110020.0,0.0290429]
[1761906682975,3.53387579,110030.0,110020.0,0.0290429]
[1761906683376,3.56120218,110030.0,110020.0,0.0290429]
[1761906683594,3.56120218,110030.0,110020.0,0.0300429]
[1761906685993,3.63030467,110030.0,110020.0,0.0300429]
[1761906686902,4.02373888,110030.0,110020.0,0.0300429]
[1761906687119,3.63030467,110030.0,110020.0,0.0300429]
[1761906687834,4.02373888,110030.0,110020.0,0.0300429]
[1761906688809,4.02373888,110030.0,110020.0,0.0290429]
[1761906689056,4.02473888,110030.0,110020.0,0.0290429]
[1761906689513,3.63030467,110030.0,110020.0,0.0290429]
[1761906689927,3.63430467,110030.0,110020.0,0.0290429]
[1761906690927,4.02973888,110030.0,110020.0,0.0290429]
[1761906691877,4.0439999,110030.0,110020.0,0.0290429]
[1761906694807,4.2900999,110030.0,110020.0,0.0290429]
[1761906695040,4.31222591,110030.0,110020.0,0.0290429]
[1761906695292,4.2900999,110030.0,110020.0,0.0290429]
[1761906696799,4.31059196,110030.0,110020.0,0.0290429]
[1761906699462,4.32484853,110030.0,110020.0,0.0290429]
[1761906700087,2.37618228,109980.0,109970.0,0.0004]
[1761906700290,3.8894388,109980.0,109970.0,0.00088217]
[1761906700570,3.9121088,109980.0,109970.0,0.00088217]
[1761906701561,3.9131088,109980.0,109970.0,0.00088217]
[1761906701756,3.9141088,109980.0,109970.0,0.00088217]
[1761906702833,3.92374243,109980.0,109970.0,0.00088217]
[1761906704713,3.99043503,109980.0,109970.0,0.00088217]
[1761906705779,3.99043503,109980.0,109970.0,0.00154645]
[1761906709734,3.78812058,109980.0,109970.0,0.00154645]
[1761906712807,3.80238256,109980.0,109970.0,0.00154645]
[1761906712997,3.78812058,109980.0,109970.0,0.00154645]
[1761906713124,3.78812058,109980.0,109970.0,0.00124645]
[1761906715908,3.80238256,109980.0,109970.0,0.00124645]
[1761906721640,3.82188392,109980.0,109970.0,0.00124645]
[1761906721836,3.82552949,109980.0,109970.0,0.00124645]
[1761906722914,3.81126751,109980.0,109970.0,0.00124645]
[1761906726213,3.82552988,109980.0,109970.0,0.00124645]
[1761906728292,3.83979599,109980.0,109970.0,0.00124645]
[1761906728503,3.83979599,109980.0,109960.0,0.0004]
[1761906728504,2.80117527,109970.0,109960.0,0.0004]
[1761906728725,2.80117527,109970.0,109950.0,0.0004]
[1761906728726,2.65843878,109960.0,109950.0,0.0004]
[1761906728935,4.82901379,109960.0,109950.0,0.00044822]
[1761906729153,4.87163186,109960.0,109950.0,0.00044822]
[1761906729366,4.84950585,109960.0,109950.0,0.00044822]
[1761906729590,4.93932486,109960.0,109950.0,0.00044822]
[1761906729793,4.92247925,109960.0,109950.0,0.00044822]
[1761906730001,3.74217662,109960.0,109950.0,0.00044822]
[1761906730428,3.74517662,109960.0,109950.0,0.00044822]
[1761906730949,3.35174241,109960.0,109950.0,0.00044822]
[1761906731580,3.34809596,109960.0,109950.0,0.00044822]
[1761906732017,3.74753017,109960.0,109950.0,0.00144822]
[1761906732224,3.74453017,109960.0,109950.0,0.00144822]
[1761906732422,3.34709596,109960.0,109950.0,0.00044822]
[1761906732959,3.35109596,109960.0,109950.0,0.00044822]
[1761906734025,3.59719596,109960.0,109950.0,0.00044822]
[1761906734246,3.59719596,109960.0,109950.0,0.00089121]
[1761906735284,3.99063017,109960.0,109950.0,0.00089121]
[1761906739841,3.74453017,109960.0,109950.0,0.00089121]
[1761906743424,3.35254988,109960.0,109950.0,0.00089121]
[1761906752593,2.56422754,109960.0,109950.0,0.00089121]
[1761906752815,3.36681534,109960.0,109950.0,0.00089121]
[1761906754325,3.38894135,109960.0,109950.0,0.00089121]
[1761906755826,3.78310252,109960.0,109950.0,0.00089121]
[1761906756040,3.80359458,109960.0,109950.0,0.00089121]
[1761906756382,2.30119843,109950.0,109940.0,0.0004]
[1761906756596,4.00781864,109950.0,109940.0,0.00044814]
[1761906758222,3.59253146,109950.0,109940.0,0.00044814]
[1761906759057,3.59153146,109950.0,109940.0,0.00044814]
[1761906759260,3.59453146,109950.0,109940.0,0.00044814]
[1761906759464,3.59653146,109950.0,109940.0,0.00044814]
[1761906761831,3.99069263,109950.0,109940.0,0.00044814]
[1761906762046,3.99069263,109950.0,109940.0,0.00066968]
[1761906763320,4.00496289,109950.0,109940.0,0.00066968]
[1761906764947,4.0270889,109950.0,109940.0,0.00066968]
[1761906766359,3.7809889,109950.0,109940.0,0.00066968]
[1761906767755,3.58047346,109950.0,109940.0,0.00066968]
[1761906767967,3.27747602,109950.0,109940.0,0.00066968]
[1761906768148,3.40480662,109950.0,109940.0,0.00066968]
[1761906769885,3.79525566,109950.0,109940.0,0.00066968]
[1761906770106,0.50353605,109930.0,109920.0,0.0014]
[1761906770312,3.29591441,109930.0,109920.0,0.00144825]
[1761906770517,3.31958441,109930.0,109920.0,0.00144825]
[1761906770878,3.19041965,109930.0,109920.0,0.00144825]
[1761906771079,3.31777342,109930.0,109920.0,0.00144825]
[1761906771446,3.31777342,109930.0,109920.0,0.00344825]
[1761906772358,3.31777342,109930.0,109920.0,0.00144825]
[1761906772563,3.32077342,109930.0,109920.0,0.00144825]
[1761906773533,3.32181431,109930.0,109920.0,0.00144825]
[1761906774537,3.01621267,109930.0,109920.0,0.00144825]
[1761906775746,3.01621267,109930.0,109920.0,0.00189142]
[1761906776538,3.35621267,109930.0,109920.0,0.00189142]
[1761906778388,3.35603884,109930.0,109920.0,0.00189142]
[1761906779851,3.37030777,109930.0,109920.0,0.00189142]
[1761906781198,2.58198543,109930.0,109920.0,0.00189142]
[1761906781422,3.37030777,109930.0,109920.0,0.00189142]
[1761906782818,0.25403115,109930.0,109920.0,0.14534677]
[1761906783038,2.73233384,109930.0,109920.0,0.15693677]
[1761906783277,2.93071114,109930.0,109920.0,0.15693677]
[1761906783941,2.49246149,109930.0,109920.0,0.18104677]
[1761906784135,2.48498018,109930.0,109920.0,0.18104677]
[1761906784347,2.82498018,109930.0,109920.0,0.18104677]
[1761906784563,2.82398018,109930.0,109920.0,0.18104677]
[1761906784770,2.34,109930.0,109920.0,0.18104677]
[1761906785206,2.0,109930.0,109920.0,0.18104677]
[1761906785612,2.0,109930.0,109920.0,0.19924182]
[1761906785821,2.34,109930.0,109920.0,0.18104677]
[1761906786458,2.34,109930.0,109920.0,0.18304677]
[1761906788565,0.34,109930.0,109920.0,0.18304677]
[1761906789270,0.34,109930.0,109920.0,0.18104677]
[1761906789488,0.34,109930.0,109920.0,0.19924182]
[1761906789699,0.341,109930.0,109920.0,0.18804677]
[1761906790113,0.341,109930.0,109920.0,0.19004677]
[1761906790964,0.001,109930.0,109920.0,0.19004677]
[1761906791634,0.001,109930.0,109920.0,0.71020923]
[1761906792259,0.001,109930.0,109920.0,0.73755106]
[1761906792722,0.34,109950.0,109940.0,0.12734218]
[1761906792936,0.34,109950.0,109940.0,0.17449218]
[1761906793765,0.73416117,109950.0,109940.0,0.17449218]
[1761906793976,0.73516117,109950.0,109940.0,0.18049218]
[1761906794422,0.73516117,109950.0,109940.0,0.18249218]
[1761906796148,0.341,109950.0,109940.0,0.18249218]
[1761906796350,0.73516117,109950.0,109940.0,0.18249218]
[1761906797883,0.341,109950.0,109940.0,0.18249218]
[1761906798037,0.73516117,109950.0,109940.0,0.18249218]
[1761906799822,2.73516117,109950.0,109940.0,0.15838218]
[1761906800023,2.341,109950.0,109940.0,0.18093218]
[1761906800221,2.73516117,109950.0,109940.0,0.18093218]
[1761906800878,2.84095018,109950.0,109940.0,0.18093218]
[1761906801085,3.39655195,109950.0,109940.0,0.14229218]
[1761906801280,3.39655195,109950.0,109940.0,0.15819218]
[1761906801895,3.39655195,109950.0,109940.0,0.008]
[1761906802050,3.39655195,109950.0,109940.0,0.13534218]
[1761906805276,3.39632605,109950.0,109940.0,0.13534218]
[1761906806859,3.26899545,109950.0,109940.0,0.13534218]
[1761906807065,2.43081901,109950.0,109940.0,0.18574218]
[1761906807272,2.82486723,109950.0,109940.0,0.18574218]
[1761906807471,2.81994162,109950.0,109940.0,0.18574218]
[1761906812139,2.82842684,109950.0,109940.0,0.18574218]
[1761906816431,2.82842684,109950.0,109940.0,0.16300218]
[1761906816432,3.37522566,109950.0,109940.0,0.16300218]
[1761906816689,3.24789506,109950.0,109940.0,0.18574218]
[1761906816930,3.22247506,109950.0,109940.0,0.18574218]
[1761906818079,3.23844506,109950.0,109940.0,0.18574218]
[1761906818304,3.24789506,109950.0,109940.0,0.18574218]
[1761906818767,3.23192506,109950.0,109940.0,0.18574218]
[1761906819865,3.24789506,109950.0,109940.0,0.18574218]
[1761906820498,2.85384684,109950.0,109940.0,0.18574218]
[1761906820704,2.31537906,109950.0,109940.0,0.18574218]
[1761906822614,2.30592906,109950.0,109940.0,0.18574218]
[1761906824017,2.21611005,109950.0,109940.0,0.18574218]
[1761906827563,2.55611005,109950.0,109940.0,0.18574218]
[1761906830935,3.08878728,109950.0,109940.0,0.13534218]
[1761906831367,3.21611788,109950.0,109940.0,0.13534218]
[1761906832086,3.30593689,109950.0,109940.0,0.008]
[1761906832629,3.30593689,109950.0,109940.0,0.13534218]
[1761906833758,3.21611788,109950.0,109940.0,0.13534218]
[1761906834579,3.21611788,109950.0,109940.0,0.008]
[1761906835002,3.21611788,109950.0,109940.0,0.13534218]
[1761906835938,3.2357025,109950.0,109940.0,0.13534218]
[1761906836253,3.2357025,109950.0,109940.0,0.008]
[1761906836861,3.28038445,109950.0,109940.0,0.008]
[1761906837268,3.2357025,109950.0,109940.0,0.008]
[1761906840902,2.44760606,109950.0,109940.0,0.008]
[1761906841121,3.2357025,109950.0,109940.0,0.13534218]
[1761906841748,3.1083719,109950.0,109940.0,0.13534218]
[1761906841958,2.66551368,109950.0,109940.0,0.18700218]
[1761906842162,2.39444144,109950.0,109940.0,0.18700218]
[1761906842378,2.78848966,109950.0,109940.0,0.18700218]
[1761906842586,2.79793966,109950.0,109940.0,0.16265218]
[1761906842997,2.8175239,109950.0,109940.0,0.18700218]
[1761906843409,2.6749633,109950.0,109940.0,0.18700218]
[1761906843612,2.6655133,109950.0,109940.0,0.18700218]
[1761906845399,2.43830423,109950.0,109940.0,0.18700218]
[1761906845638,2.83235245,109950.0,109940.0,0.18700218]
[1761906851304,2.83236906,109950.0,109940.0,0.18700218]
[1761906851542,2.83236919,109950.0,109940.0,0.18700218]
[1761906854687,2.95969979,109950.0,109940.0,0.18700218]
[1761906855990,2.97928914,109950.0,109940.0,0.18700218]
[1761906856422,2.97928914,109950.0,109940.0,0.05966]
[1761906856825,2.97928914,109950.0,109940.0,0.18700218]
[1761906857130,0.00850196,109950.0,109940.0,0.97509862]
[1761906857344,0.00082549,109960.0,109950.0,0.1273306]
[1761906857548,0.00082549,109960.0,109950.0,0.5901589]
[1761906857759,0.00082549,109960.0,109950.0,0.57196882]
[1761906858604,0.00082549,109960.0,109950.0,0.57296882]
[1761906859421,0.00082549,109960.0,109950.0,0.57396882]
[1761906860277,0.00082549,109960.0,109950.0,0.69997011]
[1761906860657,0.00082549,109960.0,109950.0,1.09401833]
[1761906861318,0.00082549,109960.0,109950.0,1.09301833]
[1761906861473,0.00082549,109960.0,109950.0,1.09401833]
[1761906862148,0.00082549,109960.0,109950.0,1.09301833]
[1761906862564,0.00082549,109960.0,109950.0,1.09601833]
[1761906862736,0.00082549,109960.0,109950.0,1.09501833]
[1761906862949,0.00082549,109960.0,109950.0,1.09201833]
[1761906863241,0.00082549,109960.0,109950.0,1.09801833]
[1761906863477,0.00082549,109960.0,109950.0,1.10001833]
[1761906864151,0.00082549,109960.0,109950.0,0.70597011]
[1761906865540,0.00082549,109960.0,109950.0,0.7055555]
[1761906867446,0.00040201,109960.0,109950.0,0.7055555]
[1761906869056,0.00040201,109960.0,109950.0,0.31192189]
[1761906869257,0.00040201,109960.0,109950.0,0.7055555]
[1761906870873,0.00040201,109960.0,109950.0,0.31192189]
[1761906875954,0.40326724,109980.0,109960.0,0.12731902]
[1761906876161,2.0,109970.0,109960.0,0.18081745]
[1761906876398,2.0,109970.0,109960.0,0.16262902]
[1761906876608,2.0,109970.0,109960.0,0.17790902]
[1761906877468,2.39363361,109970.0,109960.0,0.17790902]
[1761906877690,2.39363361,109970.0,109960.0,0.17890902]
[1761906877905,2.39363361,109970.0,109960.0,0.17990902]
[1761906878338,2.39363361,109970.0,109960.0,0.17890902]
[1761906878754,2.39363361,109970.0,109960.0,0.18190902]
[1761906881761,2.39385506,109970.0,109960.0,0.18190902]
[1761906886747,2.00022145,109970.0,109960.0,0.18190902]
[1761906886950,0.00022145,109970.0,109960.0,0.18190902]
[1761906887386,2.40235041,109970.0,109960.0,0.18190902]
[1761906888412,2.0087168,109970.0,109960.0,0.18190902]
[1761906889106,2.0061411,109970.0,109960.0,0.18190902]
[1761906890621,2.39977471,109970.0,109960.0,0.18190902]
[1761906891065,2.0061411,109970.0,109960.0,0.18190902]
[1761906896556,1.99764575,109970.0,109960.0,0.18190902]
[1761906902031,1.80683832,109970.0,109960.0,0.18190902]
[1761906902221,2.34963363,109980.0,109970.0,0.12730744]
[1761906902419,2.35813627,109980.0,109970.0,0.19820421]
[1761906903405,2.35813627,109980.0,109970.0,0.19920421]
[1761906903875,2.35813627,109980.0,109970.0,0.18101744]
[1761906904870,2.75176988,109980.0,109970.0,0.18101744]
[1761906907785,2.35835769,109980.0,109970.0,0.18101744]
[1761906908286,2.35835769,109980.0,109970.0,0.19920421]
[1761906910966,2.35835769,109980.0,109970.0,0.18101744]
[1761906911216,2.35835865,109980.0,109970.0,0.18101744]
[1761906912604,2.35835865,109980.0,109970.0,0.71883911]
[1761906912605,0.00022142,109980.0,109970.0,0.71883911]
[1761906912855,0.00022142,109980.0,109970.0,0.70065234]
[1761906913059,0.00022142,109980.0,109970.0,0.89145934]
[1761906913476,0.00022142,109980.0,109970.0,0.91878449]
[1761906914311,0.00022142,109980.0,109970.0,0.91778449]
[1761906914696,0.00022142,109980.0,109970.0,0.92378449]
[1761906915115,0.00022142,109980.0,109970.0,0.91878449]
[1761906915340,0.00022142,109980.0,109970.0,0.92578449]
[1761906915478,0.00022142,109980.0,109970.0,0.92778449]
[1761906915921,1e-08,109980.0,109970.0,1.26778449]
[1761906916158,1e-08,109980.0,109970.0,1.27778448]
[1761906917502,1e-08,109980.0,109970.0,1.28778447]
[1761906918859,1e-08,109980.0,109970.0,1.67141809]
[1761906919063,1e-08,109980.0,109970.0,1.68141808]
[1761906919845,1e-08,109980.0,109970.0,1.28778447]
[1761906920248,1e-08,109980.0,109970.0,1.27978447]
[1761906920653,1e-08,109980.0,109970.0,1.28978447]
[1761906920867,1e-08,109980.0,109970.0,1.28778447]
[1761906921268,1e-08,109980.0,109970.0,1.29078447]
[1761906924648,1e-08,109980.0,109970.0,1.44008447]
[1761906927396,1e-08,109980.0,109970.0,1.83329022]
[1761906928057,1e-08,109980.0,109970.0,1.92918022]
[1761906928902,1e-08,109980.0,109970.0,1.83329022]
[1761906929827,1e-08,109980.0,109970.0,1.82329023]
[1761906930040,1e-08,109980.0,109970.0,1.83329022]
[1761906930499,1e-08,109980.0,109970.0,1.82329023]
[1761906930708,1e-08,109980.0,109970.0,1.83329022]
[1761906931347,1e-08,109980.0,109970.0,1.82329023]
[1761906931553,1e-08,109980.0,109970.0,1.83329022]
[1761906932807,1e-08,109980.0,109970.0,1.82329023]
[1761906933011,1e-08,109980.0,109970.0,1.83329022]
[1761906934676,1e-08,109980.0,109970.0,1.42987055]
[1761906934848,1e-08,109980.0,109970.0,1.41987056]
[1761906936380,1e-08,109980.0,109970.0,1.27057056]
[1761906946577,1e-08,109980.0,109970.0,0.87715088]
[1761906946778,1e-08,109980.0,109970.0,1.27057056]
[1761906948398,1e-08,109980.0,109970.0,1.28057055]
[1761906949009,1e-08,109980.0,109970.0,1.27057056]
[1761906954832,0.39341969,109980.0,109970.0,0.53715088]
[1761906955432,1e-08,109980.0,109970.0,0.53715088]
[1761906955819,1e-08,109980.0,109970.0,0.52715088]
[1761906956173,1e-08,109980.0,109970.0,0.53415088]
[1761906956595,1e-08,109980.0,109970.0,0.53115088]
[1761906956940,0.39341969,109980.0,109970.0,0.53315088]
[1761906957351,0.39341969,109980.0,109970.0,0.34234388]
[1761906958259,1e-08,109980.0,109970.0,0.34234388]
[1761906958891,0.39341969,109980.0,109970.0,0.34234388]
[1761906959098,1e-08,109980.0,109970.0,0.73576356]
[1761906959304,2.40287217,110010.0,110000.0,0.12727272]
[1761906959510,0.4118619,110010.0,110000.0,0.14908272]
[1761906959714,0.4118619,110010.0,110000.0,0.19061453]
[1761906959976,0.40335413,110010.0,110000.0,0.17243272]
[1761906960305,0.00048196,110010.0,110000.0,0.17243272]
[1761906960516,0.00048196,110010.0,110000.0,0.31661582]
[1761906960723,0.00048196,110010.0,110000.0,0.29843401]
[1761906960949,0.39390164,110010.0,110000.0,0.29843401]
[1761906961838,0.00048196,110010.0,110000.0,0.29843401]
[1761906963174,0.39390164,110010.0,110000.0,0.29843401]
[1761906964017,0.00048196,110010.0,110000.0,0.29843401]
[1761906965074,0.39456568,110010.0,110000.0,0.29943401]
[1761906965272,0.39456568,110010.0,110000.0,0.30243401]
[1761906969937,0.001146,110010.0,110000.0,0.30243401]
[1761906970492,0.001146,110010.0,110000.0,0.32975503]
[1761906971578,0.001146,110010.0,110000.0,0.30243401]
[1761906972417,0.39456568,110010.0,110000.0,0.30243401]
[1761906972922,0.001146,110010.0,110000.0,0.30243401]
[1761906973132,2.0,110020.0,110010.0,0.12726115]
[1761906973335,0.39355107,110020.0,110010.0,0.17847115]
[1761906974153,0.39355107,110020.0,110010.0,0.1954619]
[1761906974794,0.39355107,110020.0,110010.0,0.17847115]
[1761906976118,0.39355107,110020.0,110010.0,0.19619502]
[1761906976622,0.00013139,110020.0,110010.0,0.19619502]
[1761906976815,0.00013139,110020.0,110010.0,0.32219631]
[1761906977022,0.39355107,110020.0,110010.0,0.30447244]
[1761906978321,0.00013139,110020.0,110010.0,0.30447244]
[1761906978521,0.39355107,110020.0,110010.0,0.30447244]
[1761906978669,0.00035269,110020.0,110010.0,0.30447244]
[1761906978887,0.39377237,110020.0,110010.0,0.30447244]
[1761906985423,0.00035269,110020.0,110010.0,0.30447244]
[1761906985647,0.39377237,110020.0,110010.0,0.30447244]
[1761906987313,0.00035269,110020.0,110010.0,0.30447244]
[1761906989198,0.21394766,110030.0,110020.0,0.15536959]
[1761906989445,2.22250956,110030.0,110020.0,0.17864959]
[1761906990261,2.22250956,110030.0,110020.0,0.20769249]
[1761906991430,2.22350956,110030.0,110020.0,0.20769249]
[1761906991650,2.22550956,110030.0,110020.0,0.20769249]
[1761906991853,2.23477472,110030.0,110020.0,0.20769249]
[1761906995022,2.23499599,110030.0,110020.0,0.20769249]
[1761906998735,2.23499865,110030.0,110020.0,0.20769249]
[1761906999209,2.25047865,110030.0,110020.0,0.20769249]
[1761906999440,2.23499865,110030.0,110020.0,0.20769249]
[1761906999682,2.26231902,110030.0,110020.0,0.20769249]
[1761907000390,2.41440147,110030.0,110020.0,0.20769249]
[1761907015447,2.02105099,110030.0,110020.0,0.20769249]
[1761907015586,2.41440147,110030.0,110020.0,0.20769249]
[1761907018391,2.02105099,110030.0,110020.0,0.20769249]
[1761907019074,0.02105099,110030.0,110020.0,0.20769249]
[1761907019205,0.01178583,110030.0,110020.0,0.20769249]
[1761907023422,0.00326947,110030.0,110020.0,0.72704426]
[1761907023827,0.00326947,110030.0,110020.0,0.75435804]
[1761907024250,0.00026947,110030.0,110020.0,0.75435804]
[1761907025058,0.00026947,110030.0,110020.0,0.75535804]
[1761907026255,0.00026947,110030.0,110020.0,0.76035804]
[1761907026728,0.00026947,110030.0,110020.0,0.36700756]
[1761907028098,2.39336364,110040.0,110030.0,0.17881802]
[1761907029458,2.39336364,110040.0,110030.0,0.18181802]
[1761907029658,2.39336364,110040.0,110030.0,0.18281802]
[1761907033796,2.39358488,110040.0,110030.0,0.18281802]
[1761907037851,2.0002344,110040.0,110030.0,0.18281802]
[1761907038054,2.39358488,110040.0,110030.0,0.18281802]
[1761907038682,0.16528883,110060.0,110050.0,0.1272149]
[1761907038683,0.0002,110060.0,110050.0,0.1272149]
[1761907038936,0.0002,110060.0,110050.0,0.65261794]
[1761907039077,0.0002,110060.0,110050.0,0.26420391]
[1761907039488,0.0002,110060.0,110050.0,0.29151055]
[1761907039851,0.0002,110060.0,110050.0,0.29251055]
[1761907039979,0.0002,110060.0,110050.0,0.29551055]
[1761907041182,0.00028764,110060.0,110050.0,0.29551055]
[1761907043522,0.35083431,110080.0,110070.0,0.15151178]
[1761907043755,2.35083431,110080.0,110070.0,0.15151178]
[1761907043976,2.35083431,110080.0,110070.0,0.17462178]
[1761907044198,2.01083431,110080.0,110070.0,0.19279203]
[1761907044444,2.0,110080.0,110070.0,0.73944997]
[1761907044697,2.0,110080.0,110070.0,0.72127972]
[1761907044698,2.003,110080.0,110070.0,0.72127972]
[1761907044924,0.003,110080.0,110070.0,0.72127972]
[1761907045354,0.004,110080.0,110070.0,0.72127972]
[1761907045812,0.001,110080.0,110070.0,0.72127972]
[1761907046032,0.0002,110090.0,110080.0,0.16336251]
[1761907046271,0.00028763,110090.0,110080.0,0.7143506]
[1761907046460,0.00028763,110090.0,110080.0,0.696182]
[1761907046686,0.00028763,110090.0,110080.0,0.30283152]
[1761907046919,0.00028763,110090.0,110080.0,0.696182]
[1761907047800,0.00028763,110090.0,110080.0,0.697182]
[1761907048056,0.00028763,110090.0,110080.0,0.30383152]
[1761907049132,0.00028763,110090.0,110080.0,0.33113193]
[1761907049351,0.00028763,110090.0,110080.0,0.72391125]
[1761907050797,0.00028763,110090.0,110080.0,1.11669057]
[1761907051004,0.00028763,110090.0,110080.0,0.72391125]
[1761907052588,0.00876328,110090.0,110080.0,0.72391125]
[1761907053177,0.00028763,110090.0,110080.0,0.72391125]
[1761907053994,0.00028763,110090.0,110080.0,1.11669057]
[1761907054629,0.00028763,110090.0,110080.0,2.07470457]
[1761907054835,0.00139327,110090.0,110080.0,2.07470457]
[1761907055932,0.00139327,110090.0,110080.0,2.46748389]
[1761907056148,1e-08,110090.0,110080.0,2.82748387]
[1761907056537,1e-08,110090.0,110080.0,2.43470455]
[1761907057404,1e-08,110090.0,110080.0,2.41470457]
[1761907057609,1e-08,110090.0,110080.0,2.02192525]
[1761907057843,1e-08,110090.0,110080.0,1.68192525]
[1761907060511,1e-08,110090.0,110080.0,1.28914593]
[1761907060726,1e-08,110090.0,110080.0,1.68192525]
[1761907060977,1e-08,110090.0,110080.0,2.07470457]
[1761907062250,0.00846918,110090.0,110080.0,2.07470457]
[1761907064345,1e-08,110090.0,110080.0,2.07470457]
[1761907064908,0.008474,110090.0,110080.0,0.33113193]
[1761907065123,0.40125332,110090.0,110080.0,0.17783023]
[1761907070935,2.42687332,110090.0,110080.0,0.17783023]
[1761907072123,2.554042,110090.0,110080.0,0.17783023]
[1761907072330,2.42687332,110090.0,110080.0,0.17783023]
[1761907072554,3.37664033,110090.0,110080.0,0.01244]
[1761907072762,3.31053132,110090.0,110080.0,0.001]
[1761907073368,3.31053132,110090.0,110070.0,0.16034178]
[1761907073521,2.78555864,110080.0,110070.0,0.16034178]
[1761907073716,2.79403263,110080.0,110070.0,0.16034178]
[1761907074031,2.79403263,110080.0,110070.0,0.17593178]
[1761907076605,2.79403263,110080.0,110070.0,0.17693178]
[1761907077023,2.92121286,110080.0,110070.0,0.17693178]
[1761907078440,2.79403263,110080.0,110070.0,0.17693178]
[1761907080579,3.13403263,110080.0,110070.0,0.17693178]
[1761907081519,3.28780286,110080.0,110070.0,0.02581]
[1761907081727,3.31151286,110080.0,110070.0,0.001]
[1761907081944,3.40133187,110080.0,110070.0,0.001]
[1761907082563,2.62719178,110070.0,110060.0,0.12720244]
[1761907082772,2.55406509,110070.0,110060.0,0.12720244]
[1761907082995,2.42687331,110070.0,110060.0,0.14279244]
[1761907083603,2.55406509,110070.0,110060.0,0.14279244]
[1761907084101,2.55406509,110070.0,110060.0,0.14383797]
[1761907084533,2.57777509,110070.0,110060.0,0.14383887]
[1761907084660,2.57777509,110070.0,110060.0,0.14483887]
[1761907084845,2.42687331,110070.0,110060.0,0.15652887]
[1761907085418,2.42687331,110070.0,110060.0,0.18045887]
[1761907085735,2.40125331,110070.0,110060.0,0.18045887]
[1761907087404,2.39277932,110070.0,110060.0,0.18045887]
[1761907087604,2.0,110070.0,110060.0,0.18045887]
[1761907087807,2.39277932,110070.0,110060.0,0.18045887]
[1761907098734,2.0,110070.0,110060.0,0.18045887]
[1761907098934,2.73277932,110080.0,110070.0,0.12719178]
[1761907099111,2.74129047,110080.0,110070.0,0.13530178]
[1761907099312,2.74129047,110080.0,110070.0,0.17530178]
[1761907100090,2.74229047,110080.0,110070.0,0.17530178]
[1761907100503,2.74329047,110080.0,110070.0,0.17530178]
[1761907101547,2.5621061,110080.0,110070.0,0.17530178]
[1761907101757,2.74329047,110080.0,110070.0,0.17530178]
[1761907102145,0.35051115,110080.0,110070.0,0.19347203]
[1761907102420,0.01051115,110080.0,110070.0,0.31947332]
[1761907102601,0.002,110080.0,110070.0,0.69408239]
[1761907103023,0.002,110080.0,110070.0,0.30130307]
[1761907105101,0.002,110080.0,110070.0,0.69408239]
[1761907106836,0.002,110080.0,110070.0,0.7213821]
[1761907108295,0.002,110080.0,110070.0,0.32860278]
[1761907108499,0.002,110080.0,110070.0,0.7213821]
[1761907110570,1e-08,110080.0,110070.0,1.11416142]
[1761907110771,1e-08,110080.0,110070.0,1.12416141]
[1761907111535,1e-08,110080.0,110070.0,1.12394833]
[1761907111745,0.00022106,110100.0,110090.0,0.16335096]
[1761907111948,0.00022106,110100.0,110090.0,0.29755692]
[1761907112148,0.00022106,110100.0,110090.0,0.30302997]
[1761907113378,2.50022106,110100.0,110090.0,0.30302997]
[1761907113585,2.00022106,110100.0,110090.0,0.30302997]
[1761907113807,2.00022106,110100.0,110090.0,0.30502997]
[1761907118335,0.00022106,110100.0,110090.0,0.30502997]
[1761907126064,2.39289384,110100.0,110090.0,0.17902868]
[1761907126864,2.00022106,110100.0,110090.0,0.17902868]
[1761907127884,2.39289384,110100.0,110090.0,0.17902868]
[1761907131816,2.00873523,110100.0,110090.0,0.17902868]
[1761907135796,2.54452513,110100.0,110090.0,0.02822]
[1761907136027,3.49057593,110100.0,110090.0,0.002]
[1761907136274,3.40075692,110100.0,110090.0,0.002]
[1761907136532,3.40075692,110100.0,110090.0,0.12916868]
[1761907137216,2.85760702,110100.0,110090.0,0.14456868]
[1761907137428,2.85760702,110100.0,110090.0,0.15659868]
[1761907137841,2.85760702,110100.0,110090.0,0.15459868]
[1761907138053,2.74140801,110100.0,110090.0,0.17737868]
[1761907138253,2.34873523,110100.0,110090.0,0.17737868]
[1761907138460,2.74140801,110100.0,110090.0,0.17737868]
[1761907138942,2.86856513,110100.0,110090.0,0.17737868]
[1761907139144,2.75736801,110100.0,110090.0,0.17737868]
[1761907139505,2.89494513,110100.0,110090.0,0.02743]
[1761907139710,2.0,110090.0,110080.0,0.15981068]
[1761907140023,2.41714695,110090.0,110080.0,0.15243068]
[1761907140240,2.42659695,110090.0,110080.0,0.17521068]
[1761907140409,2.41063695,110090.0,110080.0,0.17521068]
[1761907140817,2.40118695,110090.0,110080.0,0.17521068]
[1761907141024,2.0,110090.0,110080.0,0.17721068]
[1761907141605,2.0,110090.0,110080.0,0.19537928]
[1761907141826,2.0,110090.0,110080.0,0.17721068]
[1761907143552,0.34022106,110100.0,110090.0,0.12716868]
[1761907143770,0.34874025,110100.0,110090.0,0.19554563]
[1761907143949,0.00022106,110100.0,110090.0,0.19554563]
[1761907146752,0.00022106,110100.0,110090.0,0.32154692]
[1761907146942,0.00022106,110100.0,110090.0,0.30337997]
[1761907149570,0.00022106,110100.0,110090.0,0.30537997]
[1761907156178,0.00022106,110100.0,110090.0,0.99111647]
[1761907156916,0.00022106,110100.0,110090.0,0.30537997]
[1761907165468,0.00022106,110100.0,110090.0,0.69802749]
[1761907173293,0.00022106,110100.0,110090.0,0.69800571]
[1761907174276,0.00022106,110100.0,110090.0,1.09063145]
[1761907174483,0.00022106,110100.0,110090.0,0.69800571]
[1761907175097,0.00022106,110100.0,110090.0,0.72529914]
[1761907177702,2.85166792,110130.0,110120.0,0.12713403]
[1761907177912,2.36066816,110130.0,110120.0,0.17537403]
[1761907178073,2.7532939,110130.0,110120.0,0.17537403]
[1761907178561,2.36066816,110130.0,110120.0,0.17537403]
[1761907178901,2.36566816,110130.0,110120.0,0.17537403]
[1761907179104,2.02566816,110130.0,110120.0,0.17537403]
[1761907179237,2.4182939,110130.0,110120.0,0.17537403]
[1761907179462,2.4202939,110130.0,110120.0,0.17537403]
[1761907179670,2.4182939,110130.0,110120.0,0.17537403]
[1761907180637,2.4132939,110130.0,110120.0,0.17537403]
[1761907183256,2.02066816,110130.0,110120.0,0.17537403]
[1761907183394,2.4132939,110130.0,110120.0,0.17537403]
[1761907183599,2.41395686,110130.0,110120.0,0.17537403]
[1761907184769,2.20473985,110130.0,110120.0,0.17537403]